[Event "Titled Tuesday Blitz July 13 2021"]
[White "Salazar Cabezas, Alberto Javier"]
[Black "Elgersma, Onno"]
[WhiteFideId "6104401"]
[BlackFideId "1053531"]
[WhiteElo "1893"]
[BlackElo "2447"]
[Result "0-1"]
[Round "09"]
[TimeControl "180+1"]
[Date "2021.07.13"]
[WhiteClock "0:01:26"]
[BlackClock "0:01:29"]

1. Nf3 {[%clk 0:03:00]}  Nf6 {[%clk 0:02:59]} 2. c4 {[%clk 0:03:00]}  e6 {[%clk 0:02:59]} 3. Nc3 {[%clk 0:03:00]}  d5 {[%clk 0:02:59]} 4. e3 {[%clk 0:03:00]}  c5 {[%clk 0:02:59]} 5. cxd5 {[%clk 0:02:58]}  exd5 {[%clk 0:02:58]} 6. d4 {[%clk 0:02:58]}  Nc6 {[%clk 0:02:59]} 7. Bb5 {[%clk 0:02:58]}  Bd6 {[%clk 0:02:57]} 8. dxc5 {[%clk 0:02:57]}  Bxc5 {[%clk 0:02:57]} 9. O-O {[%clk 0:02:58]}  O-O {[%clk 0:02:57]} 10. h3 {[%clk 0:02:58]}  a6 {[%clk 0:02:56]} 11. Bxc6 {[%clk 0:02:58]}  bxc6 {[%clk 0:02:57]} 12. b3 {[%clk 0:02:59]}  Bd6 {[%clk 0:02:57]} 13. Bb2 {[%clk 0:02:54]}  Re8 {[%clk 0:02:57]} 14. Rc1 {[%clk 0:02:54]}  Bd7 {[%clk 0:02:57]} 15. Na4 {[%clk 0:02:53]}  Ne4 {[%clk 0:02:56]} 16. Nd4 {[%clk 0:02:49]}  Rc8 {[%clk 0:02:26]} 17. Qe2 {[%clk 0:02:46]}  c5 {[%clk 0:02:22]} 18. Nf3 {[%clk 0:02:35]}  Bb5 {[%clk 0:02:22]} 19. Qd1 {[%clk 0:02:25]}  Bxf1 {[%clk 0:02:23]} 20. Qxf1 {[%clk 0:02:24]}  c4 {[%clk 0:02:12]} 21. Qd1 {[%clk 0:02:18]}  cxb3 {[%clk 0:02:06]} 22. Qxb3 {[%clk 0:02:18]}  Rxc1+ {[%clk 0:02:04]} 23. Bxc1 {[%clk 0:02:19]}  Qa5 {[%clk 0:01:55]} 24. Nb2 {[%clk 0:02:00]}  Rc8 {[%clk 0:01:52]} 25. Nd3 {[%clk 0:01:50]}  Rc3 {[%clk 0:01:42]} 26. Qb1 {[%clk 0:01:45]}  Qb5 {[%clk 0:01:40]} 27. Nb2 {[%clk 0:01:36]}  Qe2 {[%clk 0:01:32]} 28. Nd3 {[%clk 0:01:26]}  Rxd3 {[%clk 0:01:29]} 0-1


[Site "https://www.chess.com"]

[Event "Titled Tuesday Blitz July 13 2021"]
[White "Shahade, Gregory"]
[Black "Stocek, Jiri"]
[WhiteFideId "2009064"]
[BlackFideId "304760"]
[WhiteElo "2704"]
[BlackElo "2409"]
[Result "0-1"]
[Round "09"]
[TimeControl "180+1"]
[Date "2021.07.13"]
[WhiteClock "0:00:03"]
[BlackClock "0:00:20"]

1. e4 {[%clk 0:03:00]}  c5 {[%clk 0:02:59]} 2. Nf3 {[%clk 0:03:00]}  d6 {[%clk 0:02:59]} 3. d4 {[%clk 0:03:01]}  cxd4 {[%clk 0:02:59]} 4. Nxd4 {[%clk 0:03:02]}  Nf6 {[%clk 0:02:58]} 5. Nc3 {[%clk 0:03:03]}  a6 {[%clk 0:02:58]} 6. Be3 {[%clk 0:03:02]}  Nc6 {[%clk 0:02:57]} 7. f3 {[%clk 0:03:01]}  Bd7 {[%clk 0:02:51]} 8. Qd2 {[%clk 0:02:58]}  h5 {[%clk 0:02:45]} 9. Be2 {[%clk 0:02:48]}  e6 {[%clk 0:02:43]} 10. a4 {[%clk 0:02:43]}  Rc8 {[%clk 0:02:42]} 11. O-O {[%clk 0:02:40]}  h4 {[%clk 0:02:38]} 12. f4 {[%clk 0:02:19]}  h3 {[%clk 0:02:31]} 13. g3 {[%clk 0:02:18]}  Be7 {[%clk 0:02:12]} 14. a5 {[%clk 0:01:36]}  O-O {[%clk 0:01:49]} 15. Nb3 {[%clk 0:01:22]}  e5 {[%clk 0:01:37]} 16. Bb6 {[%clk 0:01:15]}  Qe8 {[%clk 0:01:36]} 17. f5 {[%clk 0:01:11]}  Nb4 {[%clk 0:01:35]} 18. g4 {[%clk 0:00:55]}  Bc6 {[%clk 0:01:16]} 19. g5 {[%clk 0:00:55]}  Nxe4 {[%clk 0:01:16]} 20. Nxe4 {[%clk 0:00:55]}  Bxe4 {[%clk 0:01:12]} 21. Qxb4 {[%clk 0:00:55]}  d5 {[%clk 0:01:09]} 22. Bc5 {[%clk 0:00:55]}  Rxc5 {[%clk 0:01:02]} 23. Nxc5 {[%clk 0:00:56]}  Qc6 {[%clk 0:00:57]} 24. Rf2 {[%clk 0:00:30]}  Bxc5 {[%clk 0:00:56]} 25. Qe1 {[%clk 0:00:30]}  Bxf5 {[%clk 0:00:50]} 26. Kf1 {[%clk 0:00:26]}  Be4 {[%clk 0:00:41]} 27. Bg4 {[%clk 0:00:19]}  Bxf2 {[%clk 0:00:38]} 28. Qxf2 {[%clk 0:00:18]}  Bg2+ {[%clk 0:00:37]} 29. Kg1 {[%clk 0:00:18]}  f5 {[%clk 0:00:35]} 30. Be2 {[%clk 0:00:15]}  f4 {[%clk 0:00:33]} 31. Rd1 {[%clk 0:00:13]}  f3 {[%clk 0:00:31]} 32. Bd3 {[%clk 0:00:11]}  e4 {[%clk 0:00:30]} 33. Bf1 {[%clk 0:00:12]}  e3 {[%clk 0:00:28]} 34. Qxe3 {[%clk 0:00:04]}  f2+ {[%clk 0:00:28]} 35. Qxf2 {[%clk 0:00:05]}  Rxf2 {[%clk 0:00:27]} 36. Kxf2 {[%clk 0:00:06]}  Qxc2+ {[%clk 0:00:26]} 37. Be2 {[%clk 0:00:07]}  Qc5+ {[%clk 0:00:23]} 38. Ke1 {[%clk 0:00:03]}  Qg1+ {[%clk 0:00:22]} 39. Kd2 {[%clk 0:00:04]}  Qxh2 {[%clk 0:00:22]} 40. Kc1 {[%clk 0:00:03]}  Qf4+ {[%clk 0:00:22]} 41. Kb1 {[%clk 0:00:03]}  h2 {[%clk 0:00:20]} 0-1


[Site "https://www.chess.com"]

[Event "Titled Tuesday Blitz July 13 2021"]
[White "Shuvalov, Evgenij"]
[Black "Ozates, Tuna"]
[WhiteFideId "4187237"]
[BlackFideId "6354521"]
[WhiteElo "2163"]
[BlackElo "1872"]
[Result "0-1"]
[Round "09"]
[TimeControl "180+1"]
[Date "2021.07.13"]
[WhiteClock "0:00:11"]
[BlackClock "0:00:26"]

1. Nf3 {[%clk 0:02:58]}  c5 {[%clk 0:02:59]} 2. c4 {[%clk 0:02:57]}  Nc6 {[%clk 0:02:59]} 3. Nc3 {[%clk 0:02:56]}  e5 {[%clk 0:02:56]} 4. g3 {[%clk 0:02:55]}  g6 {[%clk 0:02:55]} 5. Bg2 {[%clk 0:02:56]}  Bg7 {[%clk 0:02:56]} 6. O-O {[%clk 0:02:55]}  d6 {[%clk 0:02:56]} 7. a3 {[%clk 0:02:52]}  Be6 {[%clk 0:02:56]} 8. d3 {[%clk 0:02:44]}  h6 {[%clk 0:02:55]} 9. Rb1 {[%clk 0:02:39]}  Nge7 {[%clk 0:02:53]} 10. b4 {[%clk 0:02:36]}  Qd7 {[%clk 0:02:51]} 11. Ne4 {[%clk 0:02:22]}  b6 {[%clk 0:02:47]} 12. b5 {[%clk 0:02:17]}  Nd8 {[%clk 0:02:45]} 13. Ne1 {[%clk 0:01:47]}  d5 {[%clk 0:02:41]} 14. Nc3 {[%clk 0:01:43]}  Rc8 {[%clk 0:02:36]} 15. cxd5 {[%clk 0:01:41]}  Nxd5 {[%clk 0:02:36]} 16. Nxd5 {[%clk 0:01:41]}  Bxd5 {[%clk 0:02:37]} 17. Bxd5 {[%clk 0:01:38]}  Qxd5 {[%clk 0:02:38]} 18. Nc2 {[%clk 0:01:39]}  Ne6 {[%clk 0:02:33]} 19. Ne3 {[%clk 0:01:39]}  Qd7 {[%clk 0:02:33]} 20. Nc4 {[%clk 0:01:38]}  O-O {[%clk 0:02:30]} 21. Bb2 {[%clk 0:01:36]}  f6 {[%clk 0:02:16]} 22. Qb3 {[%clk 0:01:26]}  Kh7 {[%clk 0:02:15]} 23. e3 {[%clk 0:01:22]}  Rcd8 {[%clk 0:02:12]} 24. Rbd1 {[%clk 0:01:21]}  Ng5 {[%clk 0:02:11]} 25. f4 {[%clk 0:01:18]}  exf4 {[%clk 0:02:09]} 26. gxf4 {[%clk 0:01:07]}  Qg4+ {[%clk 0:02:04]} 27. Kh1 {[%clk 0:01:07]}  Ne6 {[%clk 0:01:09]} 28. Qc2 {[%clk 0:00:50]}  Rd5 {[%clk 0:01:04]} 29. Qg2 {[%clk 0:00:46]}  Qxg2+ {[%clk 0:01:02]} 30. Kxg2 {[%clk 0:00:47]}  Rfd8 {[%clk 0:01:02]} 31. f5 {[%clk 0:00:43]}  gxf5 {[%clk 0:01:00]} 32. a4 {[%clk 0:00:30]}  Kg6 {[%clk 0:00:51]} 33. Kf3 {[%clk 0:00:24]}  Rxd3 {[%clk 0:00:50]} 34. Rxd3 {[%clk 0:00:24]}  Rxd3 {[%clk 0:00:50]} 35. Ke2 {[%clk 0:00:22]}  Rd5 {[%clk 0:00:46]} 36. Rg1+ {[%clk 0:00:19]}  Kf7 {[%clk 0:00:45]} 37. h4 {[%clk 0:00:19]}  h5 {[%clk 0:00:46]} 38. Rf1 {[%clk 0:00:18]}  Bh6 {[%clk 0:00:44]} 39. e4 {[%clk 0:00:17]}  Nd4+ {[%clk 0:00:38]} 40. Bxd4 {[%clk 0:00:17]}  Rxd4 {[%clk 0:00:39]} 41. Nb2 {[%clk 0:00:13]}  Rxe4+ {[%clk 0:00:38]} 42. Kd3 {[%clk 0:00:14]}  Rf4 {[%clk 0:00:34]} 43. Re1 {[%clk 0:00:13]}  Rxh4 {[%clk 0:00:33]} 44. Nc4 {[%clk 0:00:12]}  Rd4+ {[%clk 0:00:32]} 45. Kc3 {[%clk 0:00:13]}  Bf4 {[%clk 0:00:30]} 46. Rf1 {[%clk 0:00:12]}  h4 {[%clk 0:00:30]} 47. Kb3 {[%clk 0:00:11]}  h3 {[%clk 0:00:30]} 48. Rf3 {[%clk 0:00:12]}  h2 {[%clk 0:00:30]} 49. Rh3 {[%clk 0:00:12]}  Rd1 {[%clk 0:00:30]} 50. Rh7+ {[%clk 0:00:10]}  Kg6 {[%clk 0:00:30]} 51. Rxh2 {[%clk 0:00:11]}  Bxh2 {[%clk 0:00:29]} 52. a5 {[%clk 0:00:12]}  bxa5 {[%clk 0:00:29]} 53. Nxa5 {[%clk 0:00:12]}  f4 {[%clk 0:00:29]} 54. Nc6 {[%clk 0:00:11]}  f3 {[%clk 0:00:28]} 55. Nxa7 {[%clk 0:00:11]}  f2 {[%clk 0:00:28]} 56. b6 {[%clk 0:00:12]}  f1=Q {[%clk 0:00:28]} 57. b7 {[%clk 0:00:11]}  Qd3+ {[%clk 0:00:26]} 0-1


[Site "https://www.chess.com"]

[Event "Titled Tuesday Blitz July 13 2021"]
[White "Siniauski, Artsiom"]
[Black "shnitez"]
[WhiteFideId "13512269"]
[WhiteElo "2210"]
[BlackElo "2457"]
[Result "1-0"]
[Round "09"]
[TimeControl "180+1"]
[Date "2021.07.13"]
[WhiteClock "0:00:14"]
[BlackClock "0:00:05"]

1. e4 {[%clk 0:02:58]}  c5 {[%clk 0:02:59]} 2. Nf3 {[%clk 0:02:58]}  e6 {[%clk 0:02:58]} 3. c4 {[%clk 0:02:58]}  d6 {[%clk 0:02:55]} 4. Nc3 {[%clk 0:02:58]}  Nf6 {[%clk 0:02:53]} 5. Be2 {[%clk 0:02:58]}  Nbd7 {[%clk 0:02:51]} 6. O-O {[%clk 0:02:58]}  b6 {[%clk 0:02:48]} 7. d4 {[%clk 0:02:58]}  cxd4 {[%clk 0:02:48]} 8. Nxd4 {[%clk 0:02:59]}  Bb7 {[%clk 0:02:43]} 9. f3 {[%clk 0:03:00]}  a6 {[%clk 0:02:43]} 10. Be3 {[%clk 0:03:00]}  Be7 {[%clk 0:02:35]} 11. Rc1 {[%clk 0:02:59]}  O-O {[%clk 0:02:33]} 12. Qe1 {[%clk 0:02:59]}  Rc8 {[%clk 0:02:25]} 13. Qf2 {[%clk 0:02:55]}  Qc7 {[%clk 0:02:21]} 14. Rfd1 {[%clk 0:02:51]}  Qb8 {[%clk 0:02:20]} 15. g4 {[%clk 0:02:46]}  Ne5 {[%clk 0:01:43]} 16. b3 {[%clk 0:02:30]}  Rfe8 {[%clk 0:01:21]} 17. g5 {[%clk 0:02:28]}  Nfd7 {[%clk 0:01:20]} 18. f4 {[%clk 0:02:27]}  Nc6 {[%clk 0:01:16]} 19. h4 {[%clk 0:02:22]}  Nxd4 {[%clk 0:01:11]} 20. Bxd4 {[%clk 0:02:22]}  e5 {[%clk 0:01:07]} 21. fxe5 {[%clk 0:02:17]}  dxe5 {[%clk 0:01:01]} 22. Be3 {[%clk 0:02:15]}  Nc5 {[%clk 0:00:58]} 23. Bf3 {[%clk 0:02:10]}  Ne6 {[%clk 0:00:54]} 24. Nd5 {[%clk 0:02:07]}  Bxd5 {[%clk 0:00:48]} 25. exd5 {[%clk 0:01:59]}  Nd4 {[%clk 0:00:46]} 26. Be4 {[%clk 0:01:56]}  Rf8 {[%clk 0:00:41]} 27. Rf1 {[%clk 0:01:45]}  b5 {[%clk 0:00:35]} 28. h5 {[%clk 0:01:25]}  bxc4 {[%clk 0:00:29]} 29. bxc4 {[%clk 0:01:24]}  Qb4 {[%clk 0:00:22]} 30. h6 {[%clk 0:00:58]}  g6 {[%clk 0:00:18]} 31. Kh1 {[%clk 0:00:40]}  Rxc4 {[%clk 0:00:16]} 32. Rxc4 {[%clk 0:00:40]}  Qxc4 {[%clk 0:00:17]} 33. d6 {[%clk 0:00:40]}  Bd8 {[%clk 0:00:13]} 34. Rd1 {[%clk 0:00:33]}  Qe6 {[%clk 0:00:11]} 35. Bxd4 {[%clk 0:00:24]}  exd4 {[%clk 0:00:08]} 36. Qxd4 {[%clk 0:00:24]}  Qh3+ {[%clk 0:00:07]} 37. Kg1 {[%clk 0:00:25]}  Qg4+ {[%clk 0:00:05]} 38. Kf1 {[%clk 0:00:15]}  f6 {[%clk 0:00:05]} 39. Bd5+ {[%clk 0:00:14]} 1-0


[Site "https://www.chess.com"]

[Event "Titled Tuesday Blitz July 13 2021"]
[White "Skatchkov, Valery"]
[Black "De Silva, L M S T"]
[WhiteFideId "24195812"]
[BlackFideId "9953698"]
[WhiteElo "2199"]
[BlackElo "1621"]
[Result "1-0"]
[Round "09"]
[TimeControl "180+1"]
[Date "2021.07.13"]
[WhiteClock "0:00:30"]
[BlackClock "0:00:19"]

1. d4 {[%clk 0:03:00]}  Nf6 {[%clk 0:02:57]} 2. c4 {[%clk 0:03:01]}  e6 {[%clk 0:02:56]} 3. Nc3 {[%clk 0:02:59]}  Bb4 {[%clk 0:02:56]} 4. Qc2 {[%clk 0:02:58]}  O-O {[%clk 0:02:50]} 5. e4 {[%clk 0:02:58]}  d5 {[%clk 0:02:50]} 6. e5 {[%clk 0:02:58]}  Ne4 {[%clk 0:02:51]} 7. Bd3 {[%clk 0:02:55]}  c5 {[%clk 0:02:48]} 8. Nf3 {[%clk 0:02:53]}  cxd4 {[%clk 0:02:41]} 9. Nxd4 {[%clk 0:02:51]}  Nd7 {[%clk 0:02:41]} 10. Bf4 {[%clk 0:02:43]}  Qh4 {[%clk 0:02:38]} 11. g3 {[%clk 0:02:36]}  Qh5 {[%clk 0:02:36]} 12. cxd5 {[%clk 0:02:18]}  exd5 {[%clk 0:02:30]} 13. O-O {[%clk 0:02:14]}  Bxc3 {[%clk 0:02:26]} 14. bxc3 {[%clk 0:02:10]}  Nxe5 {[%clk 0:02:25]} 15. Bxe4 {[%clk 0:02:10]}  dxe4 {[%clk 0:02:19]} 16. Qxe4 {[%clk 0:02:11]}  Ng4 {[%clk 0:02:16]} 17. h4 {[%clk 0:02:08]}  Nf6 {[%clk 0:02:11]} 18. Qe5 {[%clk 0:02:02]}  Qg4 {[%clk 0:02:08]} 19. Bg5 {[%clk 0:01:55]}  Ne4 {[%clk 0:01:44]} 20. Rae1 {[%clk 0:01:35]}  Nxc3 {[%clk 0:01:33]} 21. Bd2 {[%clk 0:01:30]}  Na4 {[%clk 0:01:23]} 22. Bb4 {[%clk 0:01:29]}  Bd7 {[%clk 0:01:02]} 23. Bxf8 {[%clk 0:01:27]}  Rxf8 {[%clk 0:01:03]} 24. Re4 {[%clk 0:01:24]}  Qg6 {[%clk 0:01:00]} 25. Qe7 {[%clk 0:01:13]}  h6 {[%clk 0:00:43]} 26. h5 {[%clk 0:01:12]}  Qh7 {[%clk 0:00:37]} 27. Rf4 {[%clk 0:00:47]}  Nb6 {[%clk 0:00:33]} 28. Re1 {[%clk 0:00:47]}  Qd3 {[%clk 0:00:31]} 29. Nf3 {[%clk 0:00:42]}  Nd5 {[%clk 0:00:28]} 30. Ne5 {[%clk 0:00:28]}  Qd2 {[%clk 0:00:20]} 31. Qxf8+ {[%clk 0:00:27]}  Kxf8 {[%clk 0:00:18]} 32. Nxd7+ {[%clk 0:00:28]}  Kg8 {[%clk 0:00:19]} 33. Re8+ {[%clk 0:00:29]}  Kh7 {[%clk 0:00:19]} 34. Nf8+ {[%clk 0:00:30]} 1-0


[Site "https://www.chess.com"]

[Event "Titled Tuesday Blitz July 13 2021"]
[White "Starozhilov, Leonid"]
[Black "Sjugirov, Sanan"]
[WhiteFideId "14106752"]
[BlackFideId "4189302"]
[WhiteElo "2724"]
[BlackElo "2928"]
[Result "0-1"]
[Round "09"]
[TimeControl "180+1"]
[Date "2021.07.13"]
[WhiteClock "0:00:01"]
[BlackClock "0:00:11"]

1. Nf3 {[%clk 0:03:00]}  d5 {[%clk 0:02:52]} 2. g3 {[%clk 0:02:57]}  Bg4 {[%clk 0:02:50]} 3. Bg2 {[%clk 0:02:55]}  Nd7 {[%clk 0:02:50]} 4. d4 {[%clk 0:02:54]}  e6 {[%clk 0:02:48]} 5. c3 {[%clk 0:02:53]}  Ngf6 {[%clk 0:02:48]} 6. O-O {[%clk 0:02:53]}  Be7 {[%clk 0:02:47]} 7. Bg5 {[%clk 0:02:52]}  O-O {[%clk 0:02:44]} 8. Nbd2 {[%clk 0:02:52]}  c5 {[%clk 0:02:43]} 9. h3 {[%clk 0:02:51]}  Bh5 {[%clk 0:02:41]} 10. e3 {[%clk 0:02:50]}  Qb6 {[%clk 0:02:36]} 11. Qb3 {[%clk 0:02:48]}  Qa6 {[%clk 0:02:24]} 12. Ne5 {[%clk 0:02:30]}  Nb6 {[%clk 0:02:08]} 13. g4 {[%clk 0:02:20]}  Bg6 {[%clk 0:02:05]} 14. Nxg6 {[%clk 0:02:21]}  hxg6 {[%clk 0:02:06]} 15. Rfe1 {[%clk 0:02:08]}  Rac8 {[%clk 0:02:03]} 16. Bf1 {[%clk 0:02:02]}  Qa5 {[%clk 0:01:56]} 17. a4 {[%clk 0:01:39]}  cxd4 {[%clk 0:01:29]} 18. exd4 {[%clk 0:01:40]}  a6 {[%clk 0:01:16]} 19. Bd3 {[%clk 0:01:29]}  Rfe8 {[%clk 0:01:15]} 20. Kg2 {[%clk 0:01:22]}  Rc7 {[%clk 0:01:09]} 21. Bf4 {[%clk 0:01:21]}  Rcc8 {[%clk 0:01:04]} 22. f3 {[%clk 0:01:07]}  Nh7 {[%clk 0:00:56]} 23. Bg3 {[%clk 0:01:01]}  Bd8 {[%clk 0:00:46]} 24. Bb5 {[%clk 0:00:47]}  axb5 {[%clk 0:00:26]} 25. axb5 {[%clk 0:00:48]}  Nc4 {[%clk 0:00:26]} 26. Rxa5 {[%clk 0:00:40]}  Nxd2 {[%clk 0:00:26]} 27. Qa2 {[%clk 0:00:32]}  Bxa5 {[%clk 0:00:22]} 28. Qxa5 {[%clk 0:00:33]}  Ng5 {[%clk 0:00:18]} 29. Re3 {[%clk 0:00:11]}  Nc4 {[%clk 0:00:17]} 30. Qa7 {[%clk 0:00:11]}  Nxe3+ {[%clk 0:00:17]} 31. Kf2 {[%clk 0:00:11]}  Nd1+ {[%clk 0:00:17]} 32. Ke2 {[%clk 0:00:10]}  Nxb2 {[%clk 0:00:17]} 33. h4 {[%clk 0:00:09]}  Nh7 {[%clk 0:00:16]} 34. Kd2 {[%clk 0:00:07]}  Nc4+ {[%clk 0:00:16]} 35. Kd3 {[%clk 0:00:06]}  b6 {[%clk 0:00:16]} 36. g5 {[%clk 0:00:05]}  Nf8 {[%clk 0:00:16]} 37. Qb7 {[%clk 0:00:02]}  Rcd8 {[%clk 0:00:12]} 38. Bf4 {[%clk 0:00:01]}  Rd7 {[%clk 0:00:11]} 0-1


[Site "https://www.chess.com"]

[Event "Titled Tuesday Blitz July 13 2021"]
[White "Stoyanov, Tsvetan"]
[Black "Zubritskiy, Artyom"]
[WhiteFideId "2917173"]
[BlackFideId "4181247"]
[WhiteElo "2198"]
[BlackElo "2559"]
[Result "1/2-1/2"]
[Round "09"]
[TimeControl "180+1"]
[Date "2021.07.13"]
[WhiteClock "0:00:16"]
[BlackClock "0:00:13"]

1. c4 {[%clk 0:03:00]}  f5 {[%clk 0:02:58]} 2. Nc3 {[%clk 0:03:00]}  Nf6 {[%clk 0:02:58]} 3. d4 {[%clk 0:03:00]}  g6 {[%clk 0:02:58]} 4. g3 {[%clk 0:03:01]}  Bg7 {[%clk 0:02:58]} 5. Bg2 {[%clk 0:03:01]}  O-O {[%clk 0:02:58]} 6. Nf3 {[%clk 0:03:02]}  d6 {[%clk 0:02:59]} 7. O-O {[%clk 0:03:02]}  Qe8 {[%clk 0:03:00]} 8. d5 {[%clk 0:03:02]}  a5 {[%clk 0:02:59]} 9. Nd4 {[%clk 0:03:01]}  Na6 {[%clk 0:02:59]} 10. b3 {[%clk 0:03:00]}  Bd7 {[%clk 0:02:59]} 11. Bb2 {[%clk 0:03:00]}  Nc5 {[%clk 0:02:59]} 12. a3 {[%clk 0:02:53]}  g5 {[%clk 0:02:22]} 13. b4 {[%clk 0:02:51]}  Nce4 {[%clk 0:02:19]} 14. Ncb5 {[%clk 0:02:41]}  Ng4 {[%clk 0:01:15]} 15. Nxc7 {[%clk 0:02:13]}  Qh5 {[%clk 0:01:15]} 16. h3 {[%clk 0:02:14]}  Ngxf2 {[%clk 0:01:11]} 17. Rxf2 {[%clk 0:02:13]}  Nxf2 {[%clk 0:01:11]} 18. Kxf2 {[%clk 0:02:14]}  Rac8 {[%clk 0:01:11]} 19. Nce6 {[%clk 0:02:09]}  Bxe6 {[%clk 0:01:09]} 20. dxe6 {[%clk 0:02:07]}  Rxc4 {[%clk 0:01:03]} 21. Qd3 {[%clk 0:02:05]}  Rc7 {[%clk 0:00:41]} 22. Rb1 {[%clk 0:01:56]}  g4 {[%clk 0:00:39]} 23. Nb5 {[%clk 0:01:35]}  Rcc8 {[%clk 0:00:18]} 24. Bxg7 {[%clk 0:01:34]}  Kxg7 {[%clk 0:00:19]} 25. Qd4+ {[%clk 0:01:29]}  Kg8 {[%clk 0:00:19]} 26. Qf4 {[%clk 0:01:08]}  axb4 {[%clk 0:00:17]} 27. axb4 {[%clk 0:01:03]}  Rc2 {[%clk 0:00:16]} 28. Nd4 {[%clk 0:01:00]}  Rc4 {[%clk 0:00:16]} 29. Bd5 {[%clk 0:00:57]}  Rxd4 {[%clk 0:00:14]} 30. Qxd4 {[%clk 0:00:56]}  f4 {[%clk 0:00:14]} 31. Rg1 {[%clk 0:00:47]}  fxg3+ {[%clk 0:00:13]} 32. Ke1 {[%clk 0:00:44]}  Qxh3 {[%clk 0:00:09]} 33. Bg2 {[%clk 0:00:36]}  Qh5 {[%clk 0:00:07]} 34. Rf1 {[%clk 0:00:30]}  Rxf1+ {[%clk 0:00:03]} 35. Kxf1 {[%clk 0:00:30]}  Qf5+ {[%clk 0:00:02]} 36. Kg1 {[%clk 0:00:29]}  h5 {[%clk 0:00:03]} 37. Qe3 {[%clk 0:00:23]}  h4 {[%clk 0:00:02]} 38. Bxb7 {[%clk 0:00:20]}  Qb1+ {[%clk 0:00:02]} 39. Kg2 {[%clk 0:00:20]}  Qxb4 {[%clk 0:00:02]} 40. Qg5+ {[%clk 0:00:18]}  Kf8 {[%clk 0:00:03]} 41. Qf5+ {[%clk 0:00:15]}  Ke8 {[%clk 0:00:02]} 42. Qf7+ {[%clk 0:00:15]}  Kd8 {[%clk 0:00:03]} 43. Qf8+ {[%clk 0:00:15]}  Kc7 {[%clk 0:00:03]} 44. Qxe7+ {[%clk 0:00:15]}  Kb6 {[%clk 0:00:04]} 45. Bd5 {[%clk 0:00:12]}  h3+ {[%clk 0:00:04]} 46. Kxg3 {[%clk 0:00:12]}  Qe1+ {[%clk 0:00:05]} 47. Kxg4 {[%clk 0:00:12]}  Qxe2+ {[%clk 0:00:05]} 48. Kxh3 {[%clk 0:00:12]}  Qh5+ {[%clk 0:00:05]} 49. Qh4 {[%clk 0:00:10]}  Qxd5 {[%clk 0:00:06]} 50. e7 {[%clk 0:00:10]}  Qe6+ {[%clk 0:00:06]} 51. Kg3 {[%clk 0:00:11]}  Kc7 {[%clk 0:00:07]} 52. Qh7 {[%clk 0:00:07]}  Kd7 {[%clk 0:00:06]} 53. Kf4 {[%clk 0:00:08]}  Qxe7 {[%clk 0:00:06]} 54. Qxe7+ {[%clk 0:00:09]}  Kxe7 {[%clk 0:00:07]} 55. Ke4 {[%clk 0:00:09]}  Ke6 {[%clk 0:00:08]} 56. Kd4 {[%clk 0:00:10]}  d5 {[%clk 0:00:08]} 57. Kd3 {[%clk 0:00:10]}  Ke5 {[%clk 0:00:09]} 58. Ke3 {[%clk 0:00:11]}  d4+ {[%clk 0:00:09]} 59. Kd3 {[%clk 0:00:12]}  Kd5 {[%clk 0:00:10]} 60. Kd2 {[%clk 0:00:12]}  Ke5 {[%clk 0:00:11]} 61. Kc2 {[%clk 0:00:13]}  Ke4 {[%clk 0:00:11]} 62. Kd2 {[%clk 0:00:14]}  Kd5 {[%clk 0:00:10]} 63. Kd3 {[%clk 0:00:14]}  Kc5 {[%clk 0:00:10]} 64. Kd2 {[%clk 0:00:13]}  Kc4 {[%clk 0:00:11]} 65. Kc2 {[%clk 0:00:13]}  d3+ {[%clk 0:00:11]} 66. Kd2 {[%clk 0:00:14]}  Kd4 {[%clk 0:00:11]} 67. Kd1 {[%clk 0:00:14]}  Ke4 {[%clk 0:00:12]} 68. Kd2 {[%clk 0:00:14]}  Kd4 {[%clk 0:00:12]} 69. Kd1 {[%clk 0:00:15]}  Ke3 {[%clk 0:00:13]} 70. Ke1 {[%clk 0:00:15]}  Kd4 {[%clk 0:00:13]} 71. Kd1 {[%clk 0:00:16]} 1/2-1/2


[Site "https://www.chess.com"]

[Event "Titled Tuesday Blitz July 13 2021"]
[White "Tikhonov, Viacheslav"]
[Black "Gelman, Alexander"]
[WhiteFideId "44196407"]
[BlackFideId "4118316"]
[WhiteElo "1773"]
[BlackElo "2375"]
[Result "0-1"]
[Round "09"]
[TimeControl "180+1"]
[Date "2021.07.13"]
[WhiteClock "0:00:02"]
[BlackClock "0:00:11"]

1. e4 {[%clk 0:03:00]}  c5 {[%clk 0:03:00]} 2. Nf3 {[%clk 0:03:00]}  e6 {[%clk 0:03:00]} 3. b3 {[%clk 0:02:58]}  d6 {[%clk 0:02:58]} 4. Bb2 {[%clk 0:02:57]}  a6 {[%clk 0:02:58]} 5. g3 {[%clk 0:02:55]}  Nc6 {[%clk 0:02:56]} 6. Bg2 {[%clk 0:02:55]}  Nf6 {[%clk 0:02:56]} 7. Qe2 {[%clk 0:02:51]}  Be7 {[%clk 0:02:55]} 8. O-O {[%clk 0:02:49]}  O-O {[%clk 0:02:54]} 9. c4 {[%clk 0:02:45]}  Qc7 {[%clk 0:02:47]} 10. d4 {[%clk 0:02:43]}  cxd4 {[%clk 0:02:47]} 11. Nxd4 {[%clk 0:02:44]}  Bd7 {[%clk 0:02:45]} 12. Nd2 {[%clk 0:02:37]}  Rac8 {[%clk 0:02:43]} 13. Rac1 {[%clk 0:02:36]}  Ne5 {[%clk 0:02:42]} 14. f4 {[%clk 0:02:31]}  Ng6 {[%clk 0:02:41]} 15. Kh1 {[%clk 0:02:29]}  Qb8 {[%clk 0:02:35]} 16. N4f3 {[%clk 0:02:13]}  Bc6 {[%clk 0:02:26]} 17. e5 {[%clk 0:02:09]}  dxe5 {[%clk 0:02:23]} 18. Nxe5 {[%clk 0:02:03]}  Bxg2+ {[%clk 0:02:21]} 19. Kxg2 {[%clk 0:02:04]}  Rfd8 {[%clk 0:02:06]} 20. Rcd1 {[%clk 0:01:54]}  b5 {[%clk 0:02:04]} 21. Rfe1 {[%clk 0:01:46]}  Nxe5 {[%clk 0:01:58]} 22. Bxe5 {[%clk 0:01:43]}  Qb7+ {[%clk 0:01:53]} 23. Qf3 {[%clk 0:01:42]}  Qb6 {[%clk 0:01:51]} 24. h3 {[%clk 0:01:19]}  h6 {[%clk 0:01:50]} 25. g4 {[%clk 0:01:15]}  Qa5 {[%clk 0:01:38]} 26. Re2 {[%clk 0:00:58]}  Qxa2 {[%clk 0:01:28]} 27. Ra1 {[%clk 0:00:35]}  Qc2 {[%clk 0:01:18]} 28. Ne4 {[%clk 0:00:34]}  Qd3 {[%clk 0:01:12]} 29. Re3 {[%clk 0:00:27]}  Qd7 {[%clk 0:01:00]} 30. Bxf6 {[%clk 0:00:22]}  Bxf6 {[%clk 0:00:50]} 31. Nxf6+ {[%clk 0:00:19]}  gxf6 {[%clk 0:00:50]} 32. Rxa6 {[%clk 0:00:19]}  bxc4 {[%clk 0:00:49]} 33. bxc4 {[%clk 0:00:20]}  Rxc4 {[%clk 0:00:48]} 34. Ra2 {[%clk 0:00:17]}  Qc7 {[%clk 0:00:43]} 35. Rf2 {[%clk 0:00:16]}  Rdd4 {[%clk 0:00:39]} 36. Kg3 {[%clk 0:00:14]}  Kg7 {[%clk 0:00:30]} 37. Rd3 {[%clk 0:00:09]}  Rxd3 {[%clk 0:00:22]} 38. Qxd3 {[%clk 0:00:08]}  Rc3 {[%clk 0:00:22]} 39. Rf3 {[%clk 0:00:09]}  Rxd3 {[%clk 0:00:22]} 40. Rxd3 {[%clk 0:00:10]}  Qc2 {[%clk 0:00:22]} 41. Rf3 {[%clk 0:00:10]}  Qe2 {[%clk 0:00:23]} 42. Rf2 {[%clk 0:00:09]}  Qe3+ {[%clk 0:00:22]} 43. Rf3 {[%clk 0:00:10]}  Qg1+ {[%clk 0:00:22]} 44. Kh4 {[%clk 0:00:11]}  Qe1+ {[%clk 0:00:22]} 45. Kh5 {[%clk 0:00:10]}  e5 {[%clk 0:00:19]} 46. fxe5 {[%clk 0:00:06]}  fxe5 {[%clk 0:00:19]} 47. h4 {[%clk 0:00:04]}  Qe4 {[%clk 0:00:17]} 48. Rf5 {[%clk 0:00:04]}  f6 {[%clk 0:00:15]} 49. g5 {[%clk 0:00:01]}  Qe2+ {[%clk 0:00:11]} 50. Rf3 {[%clk 0:00:02]}  Qxf3# {[%clk 0:00:11]} 0-1


[Site "https://www.chess.com"]